fUST/lending_fUST_20250627
["ID","MTS","AMOUNT","RATE_DAILY","PERIOD"]
[368004286,1750990250291,-496.88,0.00020547,2]
[368004287,1750990250301,-460.0,0.00020547,2]
[368004288,1750990250312,-701.54,0.00020547,2]
[368004289,1750990250322,-460.0,0.00020547,2]
[368004290,1750990250331,-460.0,0.00020547,2]
[368004291,1750990250342,-460.0,0.00020547,2]
[368004292,1750990250351,-460.0,0.00020547,2]
[368004293,1750990250361,-151.0,0.00020547,2]
[368004294,1750990250372,-460.0,0.00020547,2]
[368004295,1750990250381,-460.0,0.00020547,2]
[368004296,1750990250391,-598.63,0.00020547,2]
[368004297,1750990250400,-460.0,0.00020547,2]
[368004298,1750990250409,-460.0,0.00020547,2]
[368004299,1750990250419,-460.0,0.00020547,2]
[368004300,1750990250429,-460.0,0.00020547,2]
[368004301,1750990250440,-460.0,0.00020547,2]
[368004302,1750990250449,-460.0,0.00020547,2]
[368004303,1750990250459,-460.0,0.00020547,2]
[368004304,1750990250468,-460.0,0.00020547,2]
[368004305,1750990250477,-460.0,0.00020547,2]
[368004306,1750990250487,-460.0,0.00020547,2]
[368004307,1750990250496,-476.96,0.00020547,2]
[368004308,1750990250506,-648.92,0.00020547,2]
[368004309,1750990250515,-855.66,0.00020547,2]
[368004310,1750990250524,-460.0,0.00020547,2]
[368004311,1750990250534,-460.0,0.00020547,2]
[368004312,1750990250543,-569.23,0.00020547,2]
[368004313,1750990250553,-543.97,0.00020547,2]
[368004314,1750990250563,-460.0,0.00020547,2]
[368004315,1750990250573,-151.0,0.00020547,2]
[368004316,1750990250583,-833.92,0.00020547,2]
[368004317,1750990250593,-468.86,0.00020547,2]
[368004318,1750990250604,-1937.95,0.00020547,2]
[368004319,1750990250614,-460.0,0.00020547,2]
[368004320,1750990250623,-151.0,0.00020547,2]
[368004321,1750990250633,-666.48,0.00020547,2]
[368004322,1750990250642,-510.45,0.00020547,2]
[368004323,1750990250652,-4160.84,0.00020547,2]
[368004324,1750990250662,-460.0,0.00020547,2]
[368004325,1750990250672,-585.93,0.00020547,2]
[368004326,1750990250682,-460.0,0.00020547,2]
[368004327,1750990250692,-810.26,0.00020547,2]
[368004328,1750990250703,-1476.7,0.00020547,2]
[368004329,1750990250713,-664.72,0.00020547,2]
[368004330,1750990250723,-709.05,0.00020547,2]
[368004331,1750990250733,-1068.07,0.00020547,2]
[368004332,1750990250743,-690.78,0.00020547,2]
[368004333,1750990250753,-460.0,0.00020547,2]
[368004334,1750990250763,-460.0,0.00020547,2]
[368004335,1750990250772,-460.0,0.00020547,2]
[368004336,1750990250782,-879.35,0.00020547,2]
[368004337,1750990250792,-665.58,0.00020547,2]
[368004338,1750990250801,-2063.54,0.00020547,2]
[368004339,1750990250811,-478.81,0.00020547,2]
[368004340,1750990250822,-460.0,0.00020547,2]
[368004341,1750990250832,-460.0,0.00020547,2]
[368004342,1750990250842,-1539.19,0.00020547,2]
[368004343,1750990250852,-709.13,0.00020547,2]
[368004344,1750990250862,-460.0,0.00020547,2]
[368004345,1750990250872,-460.0,0.00020547,2]
[368004346,1750990250883,-497.95,0.00020547,2]
[368004347,1750990250893,-2766.63,0.00020547,2]
[368004348,1750990250903,-460.0,0.00020547,2]
[368004349,1750990250915,-668.1,0.00020547,2]
[368004350,1750990250925,-4068.66,0.00020547,2]
[368004351,1750990250935,-460.0,0.00020547,2]
[368004352,1750990250945,-463.40662621,0.00020547,2]
[368004353,1750990250955,-500.26,0.00020547,2]
[368004354,1750990250964,-460.0,0.00020547,2]
[368004355,1750990250974,-1211.16,0.00020547,2]
[368004356,1750990250984,-624.51,0.00020547,2]
[368004357,1750990250996,-462.71988242,0.00020547,2]
[368004358,1750990251007,-460.0,0.00020547,2]
[368004359,1750990251016,-460.0,0.00020547,2]
[368004360,1750990251026,-1056.28,0.00020547,2]
[368004361,1750990251036,-1439.35,0.00020547,2]
[368004362,1750990251045,-460.0,0.00020547,2]
[368004363,1750990251054,-1623.76,0.00020547,2]
[368004364,1750990251064,-770.47,0.00020547,2]
[368004365,1750990251074,-460.0,0.00020547,2]
[368004366,1750990251083,-1359.78,0.00020547,2]
[368004367,1750990251092,-525.87,0.00020547,2]
[368004368,1750990251102,-577.78,0.00020547,2]
[368004369,1750990251111,-851.92,0.00020547,2]
[368004370,1750990251121,-3159.43,0.00020547,2]
[368004371,1750990251131,-460.0,0.00020547,2]
[368004372,1750990251140,-571.76,0.00020547,2]
[368004373,1750990251150,-460.0,0.00020547,2]
[368004374,1750990251161,-816.91,0.00020547,2]
[368004375,1750990251170,-460.0,0.00020547,2]
[368004376,1750990251179,-181.56515,0.00020547,2]
[368004377,1750990251189,-460.0,0.00020547,2]
[368004378,1750990251199,-181.56515,0.00020547,2]
[368004379,1750990251208,-2249.21,0.00020547,2]
[368004380,1750990251218,-527.59,0.00020547,2]
[368004381,1750990251228,-609.62,0.00020547,2]
[368004382,1750990251238,-460.0,0.00020547,2]
[368004383,1750990251248,-460.0,0.00020547,2]
[368004384,1750990251257,-1901.38,0.00020547,2]
[368004385,1750990251267,-460.0,0.00020547,2]
[368004386,1750990251277,-804.08,0.00020547,2]
[368004387,1750990251420,-460.0,0.00020547,2]
[368004388,1750990251429,-351.320462,0.00020547,2]
[368004389,1750990251439,-351.320462,0.00020547,2]
[368004390,1750990251448,-1406.946589,0.00020547,2]
[368004391,1750990251457,-460.0,0.00020547,2]
[368004392,1750990251466,-1406.946589,0.00020547,2]
[368004393,1750990251475,-2275.33,0.00020547,2]
[368004394,1750990251484,-460.0,0.00020547,2]
[368004395,1750990251493,-2499.19,0.00020547,2]
[368004396,1750990251502,-253.93845296,0.00020547,2]
[368004397,1750990251512,-460.0,0.00020547,2]
[368004398,1750990251522,-988.74,0.00020547,2]
[368004399,1750990251532,-460.0,0.00020547,2]
[368004400,1750990251541,-831.38,0.00020547,2]
[368004401,1750990251551,-460.0,0.00020547,2]
[368004402,1750990251560,-168.0,0.00020562,2]
[368004403,1750990251569,-168.0,0.00020572,2]
[368004404,1750990251578,-151.0,0.00020572,2]
[368004405,1750990251588,-151.0,0.00020572,2]
[368004406,1750990251597,-151.0,0.00020572,2]
[368004407,1750990251609,-847.04181546,0.00020572,2]
[368004408,1750990251618,-160.0,0.00020572,2]
[368004409,1750990251629,-160.0,0.00020572,2]
[368004410,1750990251639,-213.75309343,0.00020572,2]
[368004411,1750990251649,-12562.41216491,0.00020572,2]
[368004412,1750990251660,-160.0,0.00020572,2]
[368004413,1750990251670,-160.0,0.00020572,2]
[368004414,1750990251681,-160.0,0.00020572,2]
[368004415,1750990251691,-230.26210603,0.00020572,2]
[368004416,1750990251701,-160.0,0.00020572,2]
[368004417,1750990251711,-836.98798914,0.00020572,2]
[368004418,1750990251721,-214.91804724,0.00020572,2]
[368004419,1750990251730,-160.0,0.00020572,2]
[368004420,1750990251740,-160.0,0.00020572,2]
[368004421,1750990251749,-160.0,0.00020572,2]
[368004422,1750990251758,-717.72141322,0.00020584,2]
[368004423,1750990251768,-168.0,0.00020592,2]
[368004424,1750990251778,-3609.48,0.000206,2]
[368004425,1750990251787,-151.0,0.000206,4]
[368004426,1750990251798,-151.598614,0.00020625,2]
[368004427,1750990251808,-151.0,0.00020626,2]
[368004428,1750990251818,-151.0,0.00020626,2]
[368004429,1750990251827,-151.0,0.00020626,2]
[368004430,1750990251837,-151.0,0.00020627,2]
[368004431,1750990251847,-151.0,0.00020627,2]
[368004432,1750990251857,-274.990608,0.00020627,2]
[368004433,1750990251867,-215.0738,0.00020673,2]
[368004434,1750990251876,-6544.14965212,0.00020728,3]
[368004435,1750990251886,-201.459262,0.00020728,2]
[368004436,1750990251896,-201.459262,0.00020728,2]
[368004437,1750990251906,-460.0,0.00020805,2]
[368004438,1750990251915,-460.0,0.00020805,2]
[368004439,1750990251924,-460.0,0.00020805,2]
[368004440,1750990251934,-487.91,0.00020805,2]
[368004441,1750990251943,-460.0,0.00020805,2]
[368004442,1750990251952,-460.0,0.00020805,2]
[368004443,1750990251962,-474.53,0.00020805,2]
[368004444,1750990251971,-786.96,0.00020811,3]
[368004445,1750990251980,-1538.8,0.00020812,3]
[368004446,1750990251991,-769.4,0.00020812,3]
[368004447,1750990252001,-384.7,0.00020812,3]
[368004448,1750990252010,-460.0,0.00020821,2]
[368004449,1750990252020,-460.0,0.00020821,2]
[368004450,1750990252030,-460.0,0.00020821,2]
[368004451,1750990252039,-460.0,0.00020821,2]
[368004452,1750990252048,-393.24935441,0.00020821,2]
[368004453,1750990252058,-253.02753029,0.00020821,2]
[368004454,1750990252067,-676.69,0.00020821,2]
[368004455,1750990252076,-619.16,0.00020821,2]
[368004456,1750990252085,-274.140044,0.00020821,2]
[368004457,1750990252095,-460.0,0.00020821,2]
[368004458,1750990252105,-151.0,0.00020821,2]
[368004459,1750990252114,-151.0,0.00020821,2]
[368004460,1750990252124,-460.0,0.00020821,2]
[368004461,1750990252133,-505.43,0.00020821,2]
[368004462,1750990252142,-151.0,0.00020821,2]
[368004463,1750990252151,-151.0,0.00020821,2]
[368004464,1750990252161,-151.0,0.00020821,2]
[368004465,1750990252170,-151.0,0.00020821,2]
[368004466,1750990252179,-251.147989,0.00020821,2]
[368004467,1750990252188,-251.147989,0.00020821,2]
[368004468,1750990252197,-460.0,0.00020821,2]
[368004469,1750990252206,-496.88,0.00020821,2]
[368004470,1750990252215,-460.0,0.00020821,2]
[368004471,1750990252225,-701.54,0.00020821,2]
[368004472,1750990252234,-460.0,0.00020821,2]
[368004473,1750990252243,-460.0,0.00020821,2]
[368004474,1750990252253,-460.0,0.00020821,2]
[368004475,1750990252262,-460.0,0.00020821,2]
[368004476,1750990252271,-460.0,0.00020821,2]
[368004477,1750990252281,-460.0,0.00020821,2]
[368004478,1750990252290,-598.63,0.00020821,2]
[368004479,1750990252299,-460.0,0.00020821,2]
[368004480,1750990252308,-460.0,0.00020821,2]
[368004481,1750990252318,-280.0093851,0.00020821,2]
[368004482,1750990252327,-460.0,0.00020821,2]
[368004483,1750990252336,-460.0,0.00020821,2]
[368004484,1750990252345,-460.0,0.00020821,2]
[368004485,1750990252355,-335.7287704,0.00020821,2]
[368004486,1750990252364,-460.0,0.00020821,2]
[368004487,1750990252373,-374.53031473,0.00020821,2]
[368004488,1750990252382,-460.0,0.00020821,2]
[368004489,1750990252391,-476.96,0.00020821,2]
[368004490,1750990252401,-648.92,0.00020821,2]
[368004491,1750990252410,-855.66,0.00020821,2]
[368004492,1750990252421,-460.0,0.00020821,2]
[368004493,1750990252431,-569.23,0.00020821,2]
[368004494,1750990252441,-543.97,0.00020821,2]
[368004495,1750990252450,-294.85625273,0.00020821,2]
[368004496,1750990252459,-833.92,0.00020821,2]
[368004497,1750990252469,-468.86,0.00020821,2]
[368004498,1750990252478,-1937.95,0.00020821,2]
[368004499,1750990252487,-460.0,0.00020821,2]
[368004500,1750990252496,-666.48,0.00020821,2]
[368004501,1750990252506,-510.45,0.00020821,2]
[368004502,1750990252515,-4160.84,0.00020821,2]
[368004503,1750990252525,-460.0,0.00020821,2]
[368004504,1750990252535,-585.93,0.00020821,2]
[368004505,1750990252544,-460.0,0.00020821,2]
[368004506,1750990252553,-810.26,0.00020821,2]
[368004507,1750990252563,-1476.7,0.00020821,2]
[368004508,1750990252572,-664.72,0.00020821,2]
[368004509,1750990252581,-709.05,0.00020821,2]
[368004510,1750990252591,-1068.07,0.00020821,2]
[368004511,1750990252600,-690.78,0.00020821,2]
[368004512,1750990252609,-177.89586527,0.00020821,2]
[368004513,1750990252619,-460.0,0.00020821,2]
[368004514,1750990252628,-460.0,0.00020821,2]
[368004515,1750990252637,-879.35,0.00020821,2]
[368004516,1750990252647,-665.58,0.00020821,2]
[368004517,1750990252656,-2063.54,0.00020821,2]
[368004518,1750990252665,-478.81,0.00020821,2]
[368004519,1750990252674,-460.0,0.00020821,2]
[368004520,1750990252683,-460.0,0.00020821,2]
[368004521,1750990252693,-1539.19,0.00020821,2]
[368004522,1750990252702,-709.13,0.00020821,2]
[368004523,1750990252712,-460.0,0.00020821,2]
[368004524,1750990252722,-497.95,0.00020821,2]
[368004525,1750990252730,-460.0,0.00020821,2]
[368004526,1750990252739,-2766.63,0.00020821,2]
[368004527,1750990252749,-460.0,0.00020821,2]
[368004528,1750990252759,-668.1,0.00020821,2]
[368004529,1750990252768,-4068.66,0.00020821,2]
[368004530,1750990252777,-536.77303743,0.00020821,2]
[368004531,1750990252786,-500.26,0.00020821,2]
[368004532,1750990252796,-460.0,0.00020821,2]
[368004533,1750990252806,-1211.16,0.00020821,2]
[368004534,1750990252816,-624.51,0.00020821,2]
[368004535,1750990252825,-460.0,0.00020821,2]
[368004536,1750990252835,-460.0,0.00020821,2]
[368004537,1750990252845,-1056.28,0.00020821,2]
[368004538,1750990252854,-1439.35,0.00020821,2]
[368004539,1750990252863,-460.0,0.00020821,2]
[368004540,1750990252874,-1623.76,0.00020821,2]
[368004541,1750990252883,-770.47,0.00020821,2]
[368004542,1750990252892,-460.0,0.00020821,2]
[368004543,1750990252901,-1359.78,0.00020821,2]
[368004544,1750990252910,-525.87,0.00020821,2]
[368004545,1750990252919,-577.78,0.00020821,2]
[368004546,1750990252929,-851.92,0.00020821,2]
[368004547,1750990252938,-3159.43,0.00020821,2]
[368004548,1750990252947,-460.0,0.00020821,2]
[368004549,1750990252956,-571.76,0.00020821,2]
[368004550,1750990252966,-460.0,0.00020821,2]
[368004551,1750990252975,-816.91,0.00020821,2]
[368004552,1750990252986,-460.0,0.00020821,2]
[368004553,1750990252996,-460.0,0.00020821,2]
[368004554,1750990253007,-2249.21,0.00020821,2]
[368004555,1750990253016,-527.59,0.00020821,2]
[368004556,1750990253025,-609.62,0.00020821,2]
[368004557,1750990253036,-460.0,0.00020821,2]
[368004558,1750990253046,-460.0,0.00020821,2]
[368004559,1750990253055,-1901.38,0.00020821,2]
[368004560,1750990253064,-460.0,0.00020821,2]
[368004561,1750990253074,-804.08,0.00020821,2]
[368004562,1750990253083,-460.0,0.00020821,2]
[368004563,1750990253092,-460.0,0.00020821,2]
[368004564,1750990253101,-2275.33,0.00020821,2]
[368004565,1750990253110,-460.0,0.00020821,2]
[368004566,1750990253119,-2499.19,0.00020821,2]
[368004567,1750990253129,-460.0,0.00020821,2]
[368004568,1750990253138,-988.74,0.00020821,2]
[368004569,1750990253148,-460.0,0.00020821,2]
[368004570,1750990253157,-831.38,0.00020821,2]
[368004571,1750990253166,-460.0,0.00020821,2]
[368004572,1750990253176,-420.0,0.00020899,2]
[368004573,1750990253185,-151.0,0.00020901,2]
[368004574,1750990253194,-181.56515,0.00020901,2]
[368004575,1750990253203,-181.56515,0.00020901,2]
[368004576,1750990253212,-351.320462,0.00020901,2]
[368004577,1750990253221,-351.320462,0.00020901,2]
[368004578,1750990253231,-1406.946589,0.00020901,2]
[368004579,1750990253241,-1406.946589,0.00020901,2]
[368004580,1750990253250,-1113.89170431,0.00020925,2]
[368004581,1750990253259,-6544.14965212,0.00020934,4]
[368004582,1750990253268,-1500.0,0.00020937,2]
[368004583,1750990253277,-184.51473537,0.00020959,2]
[368004584,1750990253287,-717.72141322,0.00020995,2]
[368004585,1750990253296,-150.0,0.00021,2]
[368004586,1750990253305,-720.0,0.00021,5]
[368004587,1750990253315,-1165.0,0.00021,2]
[368004588,1750990253324,-460.0,0.00021079,2]
[368004589,1750990253333,-460.0,0.00021079,2]
[368004590,1750990253342,-460.0,0.00021079,2]
[368004591,1750990253352,-487.91,0.00021079,2]
[368004592,1750990253361,-460.0,0.00021079,2]
[368004593,1750990253370,-455.56536509,0.00021079,2]
[368004594,1750990253380,-474.53,0.00021079,2]
[368004595,1750990253389,-415.0,0.00021095,2]
[368004596,1750990253398,-460.0,0.00021095,2]
[368004597,1750990253407,-460.0,0.00021095,2]
[368004598,1750990253416,-460.0,0.00021095,2]
[368004599,1750990253425,-676.69,0.00021095,2]
[368004600,1750990253435,-619.16,0.00021095,2]
[368004601,1750990253445,-460.0,0.00021095,2]
[368004602,1750990253454,-460.0,0.00021095,2]
[368004603,1750990253463,-505.43,0.00021095,2]
[368004604,1750990253472,-581.90262038,0.00021095,2]
[368004605,1750990253482,-496.88,0.00021095,2]
[368004606,1750990253491,-460.0,0.00021095,2]
[368004607,1750990253502,-701.54,0.00021095,2]
[368004608,1750990253511,-460.0,0.00021095,2]
[368004609,1750990253520,-460.0,0.00021095,2]
[368004610,1750990253530,-460.0,0.00021095,2]
[368004611,1750990253539,-542.28,0.00021095,2]
[368004612,1750990253549,-151.0,0.00021095,2]
[368004613,1750990253558,-460.0,0.00021095,2]
[368004614,1750990253567,-460.0,0.00021095,2]
[368004615,1750990253576,-598.63,0.00021095,2]
[368004616,1750990253585,-460.0,0.00021095,2]
[368004617,1750990253594,-460.0,0.00021095,2]
[368004618,1750990253603,-460.0,0.00021095,2]
[368004619,1750990253613,-460.0,0.00021095,2]
[368004620,1750990253622,-151.0,0.00021095,2]
[368004621,1750990253633,-460.0,0.00021095,2]
[368004622,1750990253643,-151.0,0.00021095,2]
[368004623,1750990253652,-460.0,0.00021095,2]
[368004624,1750990253661,-460.0,0.00021095,2]
[368004625,1750990253671,-476.96,0.00021095,2]
[368004626,1750990253680,-648.92,0.00021095,2]
[368004627,1750990253690,-151.0,0.00021095,2]
[368004628,1750990253699,-855.66,0.00021095,2]
[368004629,1750990253708,-460.0,0.00021095,2]
[368004630,1750990253718,-569.23,0.00021095,2]
[368004631,1750990253728,-543.97,0.00021095,2]
[368004632,1750990253738,-151.0,0.00021095,2]
[368004633,1750990253748,-151.0,0.00021095,2]
[368004634,1750990253758,-151.0,0.00021095,2]
[368004635,1750990253768,-833.92,0.00021095,2]
[368004636,1750990253777,-468.86,0.00021095,2]
[368004637,1750990253787,-1937.95,0.00021095,2]
[368004638,1750990253796,-460.0,0.00021095,2]
[368004639,1750990253806,-152.379194,0.00021095,2]
[368004640,1750990253816,-666.48,0.00021095,2]
[368004641,1750990253825,-510.45,0.00021095,2]
[368004642,1750990253835,-4160.84,0.00021095,2]
[368004643,1750990253845,-448.74980157,0.00021095,2]
[368004644,1750990253855,-585.93,0.00021095,2]
[368004645,1750990253864,-460.0,0.00021095,2]
[368004646,1750990253874,-810.26,0.00021095,2]
[368004647,1750990253884,-1476.7,0.00021095,2]
[368004648,1750990253893,-664.72,0.00021095,2]
[368004649,1750990253903,-709.05,0.00021095,2]
[368004650,1750990253912,-1068.07,0.00021095,2]
[368004651,1750990253921,-690.78,0.00021095,2]
[368004652,1750990253931,-460.0,0.00021095,2]
[368004653,1750990253940,-460.0,0.00021095,2]
[368004654,1750990253949,-879.35,0.00021095,2]
[368004655,1750990253958,-665.58,0.00021095,2]
[368004656,1750990253967,-2063.54,0.00021095,2]
[368004657,1750990253977,-478.81,0.00021095,2]
[368004658,1750990253987,-460.0,0.00021095,2]
[368004659,1750990253999,-460.0,0.00021095,2]
[368004660,1750990254008,-1539.19,0.00021095,2]
[368004661,1750990254018,-709.13,0.00021095,2]
[368004662,1750990254027,-460.0,0.00021095,2]
[368004663,1750990254037,-236.62821212,0.00021095,2]
[368004664,1750990254046,-497.95,0.00021095,2]
[368004665,1750990254055,-2766.63,0.00021095,2]
[368004666,1750990254065,-460.0,0.00021095,2]
[368004667,1750990254074,-668.1,0.00021095,2]
[368004668,1750990254084,-201.459262,0.00021095,2]
[368004669,1750990254093,-4068.66,0.00021095,2]
[368004670,1750990254102,-201.459262,0.00021095,2]
[368004671,1750990254112,-500.26,0.00021095,2]
[368004672,1750990254122,-460.0,0.00021095,2]
[368004673,1750990254132,-1211.16,0.00021095,2]
[368004674,1750990254141,-624.51,0.00021095,2]
[368004675,1750990254151,-460.0,0.00021095,2]
[368004676,1750990254160,-460.0,0.00021095,2]
[368004677,1750990254170,-1056.28,0.00021095,2]
[368004678,1750990254179,-1439.35,0.00021095,2]
[368004679,1750990254188,-460.0,0.00021095,2]
[368004680,1750990254198,-1623.76,0.00021095,2]
[368004681,1750990254207,-770.47,0.00021095,2]
[368004682,1750990254217,-460.0,0.00021095,2]
[368004683,1750990254226,-1359.78,0.00021095,2]
[368004684,1750990254235,-525.87,0.00021095,2]
[368004685,1750990254244,-577.78,0.00021095,2]
[368004686,1750990254254,-851.92,0.00021095,2]
[368004687,1750990254263,-3159.43,0.00021095,2]
[368004688,1750990254272,-460.0,0.00021095,2]
[368004689,1750990254282,-571.76,0.00021095,2]
[368004690,1750990254291,-460.0,0.00021095,2]
[368004691,1750990254300,-816.91,0.00021095,2]
[368004692,1750990254309,-203.92720404,0.00021095,2]
[368004693,1750990254319,-460.0,0.00021095,2]
[368004694,1750990254328,-2249.21,0.00021095,2]
[368004695,1750990254337,-151.0,0.00021095,2]
[368004696,1750990254347,-527.59,0.00021095,2]
[368004697,1750990254355,-609.62,0.00021095,2]
[368004698,1750990254365,-460.0,0.00021095,2]
[368004699,1750990254375,-460.0,0.00021095,2]
[368004700,1750990254384,-1901.38,0.00021095,2]
[368004701,1750990254394,-460.0,0.00021095,2]
[368004702,1750990254404,-804.08,0.00021095,2]
[368004703,1750990254413,-460.0,0.00021095,2]
[368004704,1750990254422,-460.0,0.00021095,2]
[368004705,1750990254432,-2275.33,0.00021095,2]
[368004706,1750990254442,-460.0,0.00021095,2]
[368004707,1750990254451,-2499.19,0.00021095,2]
[368004708,1750990254460,-460.0,0.00021095,2]
[368004709,1750990254470,-988.74,0.00021095,2]
[368004710,1750990254479,-151.0,0.00021095,2]
[368004711,1750990254488,-460.0,0.00021095,2]
[368004712,1750990254497,-187.577162,0.00021095,2]
[368004713,1750990254506,-831.38,0.00021095,2]
[368004714,1750990254515,-460.0,0.00021095,2]
[368004715,1750990254525,-151.0,0.000211,3]
[368004716,1750990254534,-600.0,0.0002112,2]
[368004717,1750990254543,-6544.14965212,0.00021141,4]
[368004718,1750990254553,-168.0,0.00021165,2]
[368004719,1750990254562,-151.0,0.000212,4]
[368004720,1750990254571,-2000.0,0.000212,2]
[368004721,1750990254580,-184.51473537,0.00021233,2]
[368004722,1750990254589,-168.0,0.00021271,2]
[368004723,1750990254598,-693.214,0.00021292,2]
[368004724,1750990254607,-151.0,0.000213,4]
[368004725,1750990254617,-168.0,0.00021303,2]
[368004726,1750990254626,-600.0,0.0002134,2]
[368004727,1750990254636,-151.0,0.00021348,2]
[368004728,1750990254645,-151.0,0.00021348,2]
[368004729,1750990254655,-251.147989,0.00021348,2]
[368004730,1750990254665,-251.147989,0.00021348,2]
[368004731,1750990254674,-6544.14965212,0.00021348,5]
[368004732,1750990254683,-460.0,0.00021353,2]
[368004733,1750990254692,-460.0,0.00021353,2]
[368004734,1750990254702,-460.0,0.00021353,2]
[368004735,1750990254711,-487.91,0.00021353,2]
[368004736,1750990254720,-460.0,0.00021353,2]
[368004737,1750990254730,-151.0,0.00021353,2]
[368004738,1750990254739,-151.0,0.00021353,2]
[368004739,1750990254748,-153.41228,0.00021353,2]
[368004740,1750990254757,-474.53,0.00021353,2]
[368004741,1750990254767,-460.0,0.00021369,2]
[368004742,1750990254776,-460.0,0.00021369,2]
[368004743,1750990254785,-460.0,0.00021369,2]
[368004744,1750990254931,-676.69,0.00021369,2]
[368004745,1750990254940,-619.16,0.00021369,2]
[368004746,1750990254949,-460.0,0.00021369,2]
[368004747,1750990254959,-460.0,0.00021369,2]
[368004748,1750990254968,-505.43,0.00021369,2]
[368004749,1750990254977,-496.88,0.00021369,2]
[368004750,1750990254988,-460.0,0.00021369,2]
[368004751,1750990255001,-701.54,0.00021369,2]
[368004752,1750990255010,-460.0,0.00021369,2]
[368004753,1750990255019,-460.0,0.00021369,2]
[368004754,1750990255028,-316.49874158,0.00021369,2]
[368004755,1750990255038,-460.0,0.00021369,2]
[368004756,1750990255047,-460.0,0.00021369,2]
[368004757,1750990255057,-598.63,0.00021369,2]
[368004758,1750990255067,-460.0,0.00021369,2]
[368004759,1750990255077,-460.0,0.00021369,2]
[368004760,1750990255086,-460.0,0.00021369,2]
[368004761,1750990255096,-460.0,0.00021369,2]
[368004762,1750990255105,-460.0,0.00021369,2]
[368004763,1750990255114,-460.0,0.00021369,2]
[368004764,1750990255123,-460.0,0.00021369,2]
[368004765,1750990255135,-476.96,0.00021369,2]
[368004766,1750990255144,-648.92,0.00021369,2]
[368004767,1750990255154,-460.0,0.00021369,2]
[368004768,1750990255163,-855.66,0.00021369,2]
[368004769,1750990255172,-569.23,0.00021369,2]
[368004770,1750990255182,-543.97,0.00021369,2]
[368004771,1750990255191,-833.92,0.00021369,2]
[368004772,1750990255201,-468.86,0.00021369,2]
[368004773,1750990255211,-1937.95,0.00021369,2]
[368004774,1750990255221,-460.0,0.00021369,2]
[368004775,1750990255230,-666.48,0.00021369,2]
[368004776,1750990255239,-510.45,0.00021369,2]
[368004777,1750990255248,-4160.84,0.00021369,2]
[368004778,1750990255258,-585.93,0.00021369,2]
[368004779,1750990255267,-460.0,0.00021369,2]
[368004780,1750990255276,-810.26,0.00021369,2]
[368004781,1750990255285,-1476.7,0.00021369,2]
[368004782,1750990255295,-664.72,0.00021369,2]
[368004783,1750990255305,-709.05,0.00021369,2]
[368004784,1750990255314,-1068.07,0.00021369,2]
[368004785,1750990255323,-690.78,0.00021369,2]